[Event "December 19 Late 2023"]
[Site "https://www.chess.com"]
[Date "2023.12.19"]
[Round "2"]
[White "Gunduz, Umut Erdem"]
[Black "Su, Dion"]
[Result "1-0"]
[Board "71"]
[TimeControl "180+1"]
[WhiteFideId "6381383"]
[BlackFideId "2029731"]
[WhiteElo "2182"]
[BlackElo "2376"]
[WhiteTeam "TUR"]
[BlackTeam "USA"]
[WhiteClock "0:01:55"]
[BlackClock "0:01:03"]

1. e4 {[%clk 0:03:00]}  e6 {[%clk 0:03:00]} 2. d4 {[%clk 0:02:58]}  d5 {[%clk 0:03:00]} 3. Nd2 {[%clk 0:02:58]}  Nf6 {[%clk 0:03:00]} 4. e5 {[%clk 0:02:56]}  Nfd7 {[%clk 0:03:00]} 5. Ngf3 {[%clk 0:02:55]}  c5 {[%clk 0:02:57]} 6. c3 {[%clk 0:02:55]}  Nc6 {[%clk 0:02:58]} 7. Bd3 {[%clk 0:02:55]}  g6 {[%clk 0:02:58]} 8. a3 {[%clk 0:02:54]}  Bg7 {[%clk 0:02:57]} 9. b4 {[%clk 0:02:54]}  cxd4 {[%clk 0:02:56]} 10. cxd4 {[%clk 0:02:55]}  O-O {[%clk 0:02:52]} 11. O-O {[%clk 0:02:55]}  f6 {[%clk 0:02:51]} 12. exf6 {[%clk 0:02:54]}  Nxf6 {[%clk 0:02:49]} 13. Nb3 {[%clk 0:02:52]}  Nh5 {[%clk 0:02:44]} 14. Bg5 {[%clk 0:02:51]}  Qc7 {[%clk 0:02:41]} 15. Re1 {[%clk 0:02:50]}  Nf4 {[%clk 0:02:35]} 16. Bf1 {[%clk 0:02:44]}  h6 {[%clk 0:02:25]} 17. Bh4 {[%clk 0:02:43]}  g5 {[%clk 0:02:24]} 18. Bg3 {[%clk 0:02:42]}  a6 {[%clk 0:02:24]} 19. Rc1 {[%clk 0:02:40]}  Qf7 {[%clk 0:02:13]} 20. Ne5 {[%clk 0:02:21]}  Nxe5 {[%clk 0:02:02]} 21. dxe5 {[%clk 0:02:21]}  b6 {[%clk 0:01:55]} 22. Nd4 {[%clk 0:02:20]}  Bb7 {[%clk 0:01:50]} 23. Qd2 {[%clk 0:02:13]}  Ng6 {[%clk 0:01:42]} 24. a4 {[%clk 0:02:07]}  Rac8 {[%clk 0:01:39]} 25. a5 {[%clk 0:02:05]}  bxa5 {[%clk 0:01:28]} 26. bxa5 {[%clk 0:02:06]}  Rxc1 {[%clk 0:01:28]} 27. Qxc1 {[%clk 0:02:04]}  h5 {[%clk 0:01:26]} 28. Qxg5 {[%clk 0:02:01]}  h4 {[%clk 0:01:14]} 29. Bxh4 {[%clk 0:02:00]}  Nxh4 {[%clk 0:01:13]} 30. Qxh4 {[%clk 0:02:00]}  Rc8 {[%clk 0:01:05]} 31. Qg4 {[%clk 0:01:56]}  Rc4 {[%clk 0:01:03]} 32. Bxc4 {[%clk 0:01:55]} 1-0

[Event "December 19 Late 2023"]
[Site "https://www.chess.com"]
[Date "2023.12.19"]
[Round "2"]
[White "Goltsev, Dmitry"]
[Black "Kostiukov, Alexandr"]
[Result "1-0"]
[Board "72"]
[TimeControl "180+1"]
[WhiteFideId "24176710"]
[BlackFideId "14108100"]
[WhiteElo "2370"]
[BlackElo "2112"]
[WhiteTeam "RUS"]
[BlackTeam "UKR"]
[WhiteClock "0:01:15"]
[BlackClock "0:00:00"]

1. e4 {[%clk 0:03:00]}  c5 {[%clk 0:02:59]} 2. Nf3 {[%clk 0:03:00]}  g6 {[%clk 0:02:59]} 3. d4 {[%clk 0:03:00]}  cxd4 {[%clk 0:02:59]} 4. Qxd4 {[%clk 0:03:00]}  Nf6 {[%clk 0:02:59]} 5. Nc3 {[%clk 0:03:00]}  Nc6 {[%clk 0:03:00]} 6. Qa4 {[%clk 0:03:00]}  d6 {[%clk 0:02:59]} 7. e5 {[%clk 0:03:01]}  dxe5 {[%clk 0:02:58]} 8. Nxe5 {[%clk 0:03:02]}  Bg7 {[%clk 0:02:55]} 9. Bb5 {[%clk 0:02:57]}  O-O {[%clk 0:02:53]} 10. Nxc6 {[%clk 0:02:55]}  bxc6 {[%clk 0:02:53]} 11. Bxc6 {[%clk 0:02:56]}  Bd7 {[%clk 0:02:52]} 12. Bxd7 {[%clk 0:02:55]}  Nxd7 {[%clk 0:02:53]} 13. O-O {[%clk 0:02:54]}  Nc5 {[%clk 0:02:43]} 14. Qh4 {[%clk 0:02:50]}  Rb8 {[%clk 0:02:34]} 15. Bg5 {[%clk 0:02:41]}  Re8 {[%clk 0:02:19]} 16. Rad1 {[%clk 0:02:36]}  Qb6 {[%clk 0:01:27]} 17. Nd5 {[%clk 0:02:17]}  Qxb2 {[%clk 0:01:26]} 18. Bxe7 {[%clk 0:02:10]}  Nd7 {[%clk 0:01:01]} 19. Nc7 {[%clk 0:02:01]}  Ne5 {[%clk 0:00:34]} 20. Nxe8 {[%clk 0:01:54]}  Rxe8 {[%clk 0:00:35]} 21. Rd8 {[%clk 0:01:32]}  Rxd8 {[%clk 0:00:32]} 22. Bxd8 {[%clk 0:01:33]}  Qxc2 {[%clk 0:00:19]} 23. Bf6 {[%clk 0:01:21]}  Qxa2 {[%clk 0:00:10]} 24. Rd1 {[%clk 0:01:17]}  h6 {[%clk 0:00:02]} 25. Bxg7 {[%clk 0:01:14]}  Kxg7 {[%clk 0:00:00]} 26. Qd4 {[%clk 0:01:15]} 1-0

[Event "December 19 Late 2023"]
[Site "https://www.chess.com"]
[Date "2023.12.19"]
[Round "2"]
[White "Biernacki, Mark"]
[Black "Annaberdiyev, Meylis"]
[Result "0-1"]
[Board "73"]
[TimeControl "180+1"]
[WhiteFideId "2082322"]
[BlackFideId "14000563"]
[WhiteElo "1965"]
[BlackElo "2405"]
[WhiteTeam "USA"]
[BlackTeam "TKM"]
[WhiteClock "0:00:00"]
[BlackClock "0:00:19"]

1. e4 {[%clk 0:02:58]}  c5 {[%clk 0:02:58]} 2. Nc3 {[%clk 0:02:57]}  Nc6 {[%clk 0:02:58]} 3. Bb5 {[%clk 0:02:56]}  Nd4 {[%clk 0:02:58]} 4. Nf3 {[%clk 0:02:55]}  g6 {[%clk 0:02:57]} 5. Nxd4 {[%clk 0:02:47]}  cxd4 {[%clk 0:02:58]} 6. Ne2 {[%clk 0:02:47]}  Bg7 {[%clk 0:02:57]} 7. c3 {[%clk 0:02:43]}  a6 {[%clk 0:02:41]} 8. Bd3 {[%clk 0:02:30]}  dxc3 {[%clk 0:02:26]} 9. dxc3 {[%clk 0:02:31]}  d6 {[%clk 0:02:26]} 10. O-O {[%clk 0:02:24]}  Nf6 {[%clk 0:02:26]} 11. Be3 {[%clk 0:02:09]}  Ng4 {[%clk 0:02:21]} 12. Bf4 {[%clk 0:01:42]}  O-O {[%clk 0:02:20]} 13. h3 {[%clk 0:01:40]}  Ne5 {[%clk 0:02:20]} 14. Bc2 {[%clk 0:01:38]}  Nc4 {[%clk 0:01:59]} 15. Rb1 {[%clk 0:01:30]}  e5 {[%clk 0:01:58]} 16. Bg3 {[%clk 0:01:17]}  Be6 {[%clk 0:01:57]} 17. Bd3 {[%clk 0:00:44]}  d5 {[%clk 0:01:47]} 18. Qc2 {[%clk 0:00:44]}  dxe4 {[%clk 0:01:27]} 19. Bxe4 {[%clk 0:00:45]}  Qc7 {[%clk 0:01:27]} 20. Nd4 {[%clk 0:00:36]}  Bd7 {[%clk 0:01:20]} 21. Rfd1 {[%clk 0:00:27]}  Kh8 {[%clk 0:01:03]} 22. Qe2 {[%clk 0:00:18]}  Nd6 {[%clk 0:00:48]} 23. Nb3 {[%clk 0:00:15]}  Nxe4 {[%clk 0:00:47]} 24. Qxe4 {[%clk 0:00:15]}  Bf5 {[%clk 0:00:48]} 25. Qe2 {[%clk 0:00:07]}  Bxb1 {[%clk 0:00:47]} 26. Rxb1 {[%clk 0:00:08]}  f5 {[%clk 0:00:47]} 27. Bh2 {[%clk 0:00:07]}  f4 {[%clk 0:00:46]} 28. f3 {[%clk 0:00:08]}  Rad8 {[%clk 0:00:43]} 29. Kh1 {[%clk 0:00:07]}  Qd7 {[%clk 0:00:38]} 30. Bg1 {[%clk 0:00:08]}  Rf7 {[%clk 0:00:34]} 31. Nc5 {[%clk 0:00:02]}  Qd5 {[%clk 0:00:34]} 32. a3 {[%clk 0:00:01]}  h5 {[%clk 0:00:28]} 33. Re1 {[%clk 0:00:02]}  Kh7 {[%clk 0:00:27]} 34. Ne4 {[%clk 0:00:03]}  Bh6 {[%clk 0:00:27]} 35. Qf2 {[%clk 0:00:03]}  Qc6 {[%clk 0:00:24]} 36. Qa7 {[%clk 0:00:03]}  Rfd7 {[%clk 0:00:23]} 37. Nc5 {[%clk 0:00:03]}  Rd1 {[%clk 0:00:21]} 38. Rxd1 {[%clk 0:00:03]}  Rxd1 {[%clk 0:00:22]} 39. Qb8 {[%clk 0:00:01]}  Rxg1+ {[%clk 0:00:21]} 40. Kxg1 {[%clk 0:00:01]}  Qxc5+ {[%clk 0:00:22]} 41. Kh2 {[%clk 0:00:02]}  Qd5 {[%clk 0:00:21]} 42. Qc7+ {[%clk 0:00:02]}  Bg7 {[%clk 0:00:21]} 43. Qe7 {[%clk 0:00:00]}  b5 {[%clk 0:00:19]} 0-1

[Event "December 19 Late 2023"]
[Site "https://www.chess.com"]
[Date "2023.12.19"]
[Round "2"]
[White "Gruzman, Ilya"]
[Black "Solon, Nathan"]
[Result "0-1"]
[Board "75"]
[TimeControl "180+1"]
[WhiteFideId "2812703"]
[BlackFideId "2017229"]
[WhiteElo "1986"]
[BlackElo "2661"]
[WhiteTeam "ISR"]
[BlackTeam "USA"]
[WhiteClock "0:00:00"]
[BlackClock "0:00:53"]

1. d4 {[%clk 0:02:58]}  d5 {[%clk 0:02:59]} 2. c4 {[%clk 0:02:59]}  c6 {[%clk 0:03:00]} 3. Nf3 {[%clk 0:02:59]}  Nf6 {[%clk 0:02:59]} 4. Nc3 {[%clk 0:03:00]}  e6 {[%clk 0:02:59]} 5. Bg5 {[%clk 0:02:59]}  dxc4 {[%clk 0:02:59]} 6. e4 {[%clk 0:02:58]}  b5 {[%clk 0:02:59]} 7. e5 {[%clk 0:02:58]}  h6 {[%clk 0:02:59]} 8. Bh4 {[%clk 0:02:58]}  g5 {[%clk 0:02:59]} 9. Nxg5 {[%clk 0:02:59]}  hxg5 {[%clk 0:03:00]} 10. Bxg5 {[%clk 0:03:00]}  Be7 {[%clk 0:03:00]} 11. exf6 {[%clk 0:02:58]}  Bxf6 {[%clk 0:03:01]} 12. Bxf6 {[%clk 0:02:57]}  Qxf6 {[%clk 0:03:02]} 13. Ne4 {[%clk 0:02:46]}  Qe7 {[%clk 0:03:01]} 14. g3 {[%clk 0:02:30]}  f5 {[%clk 0:02:44]} 15. Nd2 {[%clk 0:02:16]}  Bb7 {[%clk 0:02:38]} 16. Bg2 {[%clk 0:01:53]}  c5 {[%clk 0:02:14]} 17. Bxb7 {[%clk 0:01:43]}  Qxb7 {[%clk 0:02:14]} 18. Qf3 {[%clk 0:01:44]}  Nc6 {[%clk 0:02:15]} 19. dxc5 {[%clk 0:01:13]}  O-O-O {[%clk 0:02:14]} 20. O-O-O {[%clk 0:00:55]}  Ne5 {[%clk 0:02:06]} 21. Qxb7+ {[%clk 0:00:55]}  Kxb7 {[%clk 0:02:07]} 22. Rdf1 {[%clk 0:00:28]}  Nd3+ {[%clk 0:01:58]} 23. Kc2 {[%clk 0:00:27]}  Nb4+ {[%clk 0:01:55]} 24. Kc1 {[%clk 0:00:10]}  Nxa2+ {[%clk 0:01:53]} 25. Kc2 {[%clk 0:00:10]}  Nb4+ {[%clk 0:01:53]} 26. Kc1 {[%clk 0:00:08]}  Nd3+ {[%clk 0:01:53]} 27. Kc2 {[%clk 0:00:08]}  Kc6 {[%clk 0:01:46]} 28. Nf3 {[%clk 0:00:07]}  Kxc5 {[%clk 0:01:42]} 29. h4 {[%clk 0:00:06]}  b4 {[%clk 0:01:40]} 30. Ng5 {[%clk 0:00:02]}  Kd5 {[%clk 0:01:07]} 31. h5 {[%clk 0:00:02]}  Rdg8 {[%clk 0:01:01]} 32. f4 {[%clk 0:00:02]}  Rh6 {[%clk 0:00:58]} 33. b3 {[%clk 0:00:01]}  Nc5 {[%clk 0:00:54]} 34. bxc4+ {[%clk 0:00:00]}  Kxc4 {[%clk 0:00:53]} 0-1

[Event "December 19 Late 2023"]
[Site "https://www.chess.com"]
[Date "2023.12.19"]
[Round "2"]
[White "Manukyan, Sargis A."]
[Black "Obon Temprano, Sergi"]
[Result "1-0"]
[Board "76"]
[TimeControl "180+1"]
[WhiteFideId "13303970"]
[BlackFideId "2226545"]
[WhiteElo "2186"]
[BlackElo "2135"]
[WhiteTeam "ARM"]
[BlackTeam "ESP"]
[WhiteClock "0:00:22"]
[BlackClock "0:00:13"]

1. d4 {[%clk 0:03:00]}  d5 {[%clk 0:02:59]} 2. c4 {[%clk 0:03:01]}  c6 {[%clk 0:02:59]} 3. Nc3 {[%clk 0:03:02]}  Nf6 {[%clk 0:02:59]} 4. e3 {[%clk 0:03:02]}  e6 {[%clk 0:02:58]} 5. Nf3 {[%clk 0:03:03]}  Nbd7 {[%clk 0:02:58]} 6. Bd3 {[%clk 0:03:04]}  dxc4 {[%clk 0:02:58]} 7. Bxc4 {[%clk 0:03:04]}  b5 {[%clk 0:02:57]} 8. Bd3 {[%clk 0:03:05]}  a6 {[%clk 0:02:58]} 9. e4 {[%clk 0:03:05]}  c5 {[%clk 0:02:58]} 10. e5 {[%clk 0:03:06]}  cxd4 {[%clk 0:02:57]} 11. Nxb5 {[%clk 0:03:07]}  axb5 {[%clk 0:02:58]} 12. exf6 {[%clk 0:03:07]}  gxf6 {[%clk 0:02:57]} 13. O-O {[%clk 0:03:08]}  Qb6 {[%clk 0:02:55]} 14. Qe2 {[%clk 0:03:08]}  Bb7 {[%clk 0:02:55]} 15. Rd1 {[%clk 0:03:01]}  Rg8 {[%clk 0:02:52]} 16. Bf4 {[%clk 0:02:56]}  Be7 {[%clk 0:02:28]} 17. Bg3 {[%clk 0:02:55]}  Bc6 {[%clk 0:02:16]} 18. Nxd4 {[%clk 0:02:48]}  Qxd4 {[%clk 0:02:04]} 19. Bxh7 {[%clk 0:02:17]}  Qg4 {[%clk 0:02:02]} 20. Qc2 {[%clk 0:02:17]}  Bd5 {[%clk 0:01:46]} 21. Bxg8 {[%clk 0:01:36]}  Qxg8 {[%clk 0:01:45]} 22. Rxd5 {[%clk 0:01:35]}  exd5 {[%clk 0:01:45]} 23. Qc6 {[%clk 0:01:34]}  Rd8 {[%clk 0:01:37]} 24. Re1 {[%clk 0:01:32]}  Kf8 {[%clk 0:01:34]} 25. Bc7 {[%clk 0:01:19]}  Ne5 {[%clk 0:01:09]} 26. Rxe5 {[%clk 0:01:16]}  fxe5 {[%clk 0:01:08]} 27. Bxd8 {[%clk 0:01:17]}  Bxd8 {[%clk 0:01:07]} 28. Qd6+ {[%clk 0:01:14]}  Be7 {[%clk 0:01:01]} 29. Qb8+ {[%clk 0:01:11]}  Kg7 {[%clk 0:00:59]} 30. Qxe5+ {[%clk 0:01:12]}  Kh7 {[%clk 0:00:53]} 31. Qh5+ {[%clk 0:01:08]}  Kg7 {[%clk 0:00:53]} 32. Qxd5 {[%clk 0:01:09]}  Qd8 {[%clk 0:00:47]} 33. Qxb5 {[%clk 0:00:57]}  Qd1+ {[%clk 0:00:45]} 34. Qf1 {[%clk 0:00:58]}  Qc2 {[%clk 0:00:41]} 35. a4 {[%clk 0:00:52]}  Qxa4 {[%clk 0:00:39]} 36. Qc1 {[%clk 0:00:47]}  Bf6 {[%clk 0:00:36]} 37. g3 {[%clk 0:00:40]}  Qb4 {[%clk 0:00:33]} 38. Qd1 {[%clk 0:00:37]}  Bxb2 {[%clk 0:00:29]} 39. Qf3 {[%clk 0:00:34]}  Bf6 {[%clk 0:00:23]} 40. Kg2 {[%clk 0:00:34]}  Qd4 {[%clk 0:00:20]} 41. h4 {[%clk 0:00:35]}  Qe5 {[%clk 0:00:19]} 42. Qg4+ {[%clk 0:00:35]}  Kh7 {[%clk 0:00:19]} 43. Qd1 {[%clk 0:00:32]}  Qe4+ {[%clk 0:00:19]} 44. Kh2 {[%clk 0:00:32]}  Bd4 {[%clk 0:00:18]} 45. Qd2 {[%clk 0:00:30]}  Qe5 {[%clk 0:00:15]} 46. Qd3+ {[%clk 0:00:29]}  Kg7 {[%clk 0:00:14]} 47. Qf3 {[%clk 0:00:29]}  Qf6 {[%clk 0:00:14]} 48. Qg4+ {[%clk 0:00:29]}  Kf8 {[%clk 0:00:14]} 49. f4 {[%clk 0:00:27]}  Bc3 {[%clk 0:00:13]} 50. h5 {[%clk 0:00:24]}  Bd4 {[%clk 0:00:12]} 51. Kh3 {[%clk 0:00:23]}  Qg7 {[%clk 0:00:12]} 52. Qc8+ {[%clk 0:00:21]}  Ke7 {[%clk 0:00:13]} 53. Qc7+ {[%clk 0:00:22]}  Kf8 {[%clk 0:00:13]} 54. Qd8# {[%clk 0:00:22]} 1-0

[Event "December 19 Late 2023"]
[Site "https://www.chess.com"]
[Date "2023.12.19"]
[Round "2"]
[White "Sturt, Raven"]
[Black "Paragua, Megan Althea"]
[Result "1-0"]
[Board "78"]
[TimeControl "180+1"]
[WhiteFideId "2007304"]
[BlackFideId "30973007"]
[WhiteElo "2408"]
[BlackElo "1961"]
[WhiteTeam "USA"]
[BlackTeam "USA"]
[WhiteClock "0:00:24"]
[BlackClock "0:00:00"]

1. f4 {[%clk 0:03:00]}  Nf6 {[%clk 0:02:57]} 2. Nf3 {[%clk 0:03:00]}  d5 {[%clk 0:02:58]} 3. e3 {[%clk 0:03:00]}  e6 {[%clk 0:02:58]} 4. b3 {[%clk 0:03:00]}  Be7 {[%clk 0:02:59]} 5. Bb2 {[%clk 0:03:00]}  O-O {[%clk 0:02:59]} 6. Rg1 {[%clk 0:02:48]}  Ne4 {[%clk 0:02:51]} 7. d3 {[%clk 0:02:47]}  Bf6 {[%clk 0:02:43]} 8. Ne5 {[%clk 0:02:36]}  Bxe5 {[%clk 0:02:29]} 9. fxe5 {[%clk 0:02:16]}  Nc5 {[%clk 0:01:36]} 10. Qg4 {[%clk 0:02:06]}  Ncd7 {[%clk 0:01:22]} 11. Nd2 {[%clk 0:02:04]}  c5 {[%clk 0:01:20]} 12. h4 {[%clk 0:02:04]}  Nc6 {[%clk 0:01:17]} 13. a3 {[%clk 0:02:03]}  Ncxe5 {[%clk 0:01:15]} 14. Qg3 {[%clk 0:02:03]}  f6 {[%clk 0:00:58]} 15. Nf3 {[%clk 0:01:59]}  Nxf3+ {[%clk 0:00:55]} 16. gxf3 {[%clk 0:01:59]}  Qe7 {[%clk 0:00:55]} 17. O-O-O {[%clk 0:01:55]}  b5 {[%clk 0:00:53]} 18. h5 {[%clk 0:01:55]}  Kh8 {[%clk 0:00:48]} 19. Bh3 {[%clk 0:01:52]}  Nb6 {[%clk 0:00:44]} 20. f4 {[%clk 0:01:32]}  Bd7 {[%clk 0:00:38]} 21. Kb1 {[%clk 0:01:32]}  c4 {[%clk 0:00:37]} 22. Bd4 {[%clk 0:01:29]}  cxb3 {[%clk 0:00:30]} 23. cxb3 {[%clk 0:01:30]}  Rg8 {[%clk 0:00:24]} 24. b4 {[%clk 0:01:28]}  Na4 {[%clk 0:00:22]} 25. h6 {[%clk 0:01:26]}  a5 {[%clk 0:00:17]} 26. hxg7+ {[%clk 0:01:23]}  Rxg7 {[%clk 0:00:17]} 27. Qh4 {[%clk 0:01:22]}  Rf8 {[%clk 0:00:13]} 28. Rxg7 {[%clk 0:01:20]}  Qxg7 {[%clk 0:00:13]} 29. bxa5 {[%clk 0:01:20]}  Qe7 {[%clk 0:00:13]} 30. Rg1 {[%clk 0:01:14]}  e5 {[%clk 0:00:13]} 31. fxe5 {[%clk 0:00:46]}  Qxa3 {[%clk 0:00:11]} 32. Bxd7 {[%clk 0:00:45]}  Qxd3+ {[%clk 0:00:11]} 33. Kc1 {[%clk 0:00:44]}  Qa3+ {[%clk 0:00:09]} 34. Kd2 {[%clk 0:00:43]}  Qa2+ {[%clk 0:00:08]} 35. Kd3 {[%clk 0:00:38]}  Qc4+ {[%clk 0:00:08]} 36. Kd2 {[%clk 0:00:38]}  Qa2+ {[%clk 0:00:08]} 37. Ke1 {[%clk 0:00:31]}  Qb1+ {[%clk 0:00:08]} 38. Kf2 {[%clk 0:00:24]}  fxe5+ {[%clk 0:00:08]} 39. Kg2 {[%clk 0:00:24]}  Rg8+ {[%clk 0:00:08]} 40. Kh3 {[%clk 0:00:25]}  Qe4 {[%clk 0:00:00]} 41. Qf6+ {[%clk 0:00:24]} 1-0

[Event "December 19 Late 2023"]
[Site "https://www.chess.com"]
[Date "2023.12.19"]
[Round "2"]
[White "Zavgorodniy, Sergiy"]
[Black "Silvestre, Christian"]
[Result "0-1"]
[Board "79"]
[TimeControl "180+1"]
[WhiteFideId "14110148"]
[BlackFideId "30956269"]
[WhiteElo "2402"]
[BlackElo "2255"]
[WhiteTeam "UKR"]
[BlackTeam "USA"]
[WhiteClock "0:00:39"]
[BlackClock "0:00:19"]

1. e4 {[%clk 0:03:00]}  c5 {[%clk 0:03:00]} 2. Nc3 {[%clk 0:03:00]}  a6 {[%clk 0:03:00]} 3. a4 {[%clk 0:03:00]}  e6 {[%clk 0:03:01]} 4. g3 {[%clk 0:03:00]}  Qc7 {[%clk 0:03:01]} 5. Bg2 {[%clk 0:03:01]}  Nf6 {[%clk 0:03:01]} 6. Nge2 {[%clk 0:03:01]}  Nc6 {[%clk 0:03:01]} 7. O-O {[%clk 0:03:01]}  d6 {[%clk 0:02:58]} 8. d3 {[%clk 0:03:02]}  Be7 {[%clk 0:02:58]} 9. f4 {[%clk 0:03:01]}  h5 {[%clk 0:02:58]} 10. h3 {[%clk 0:03:00]}  b6 {[%clk 0:02:55]} 11. Be3 {[%clk 0:03:00]}  Bb7 {[%clk 0:02:55]} 12. d4 {[%clk 0:02:59]}  cxd4 {[%clk 0:02:53]} 13. Nxd4 {[%clk 0:02:59]}  O-O-O {[%clk 0:02:31]} 14. Ndb5 {[%clk 0:02:54]}  axb5 {[%clk 0:02:30]} 15. Nxb5 {[%clk 0:02:54]}  Qd7 {[%clk 0:02:24]} 16. Bxb6 {[%clk 0:02:54]}  d5 {[%clk 0:02:15]} 17. Bxd8 {[%clk 0:02:40]}  Bxd8 {[%clk 0:02:10]} 18. e5 {[%clk 0:02:38]}  Bb6+ {[%clk 0:02:04]} 19. Kh1 {[%clk 0:02:32]}  Ng4 {[%clk 0:02:02]} 20. Qd2 {[%clk 0:02:11]}  Ne3 {[%clk 0:02:01]} 21. a5 {[%clk 0:01:59]}  Nxf1 {[%clk 0:01:46]} 22. Bxf1 {[%clk 0:01:58]}  Bc5 {[%clk 0:01:34]} 23. a6 {[%clk 0:01:57]}  Ba8 {[%clk 0:01:31]} 24. Kh2 {[%clk 0:01:45]}  Na7 {[%clk 0:01:24]} 25. Qc3 {[%clk 0:01:35]}  Qc6 {[%clk 0:01:14]} 26. Nd4 {[%clk 0:01:15]}  Qc7 {[%clk 0:00:59]} 27. b4 {[%clk 0:01:10]}  Bb6 {[%clk 0:00:57]} 28. Qd2 {[%clk 0:00:59]}  Nc6 {[%clk 0:00:55]} 29. Nb5 {[%clk 0:00:58]}  Qd7 {[%clk 0:00:51]} 30. Nd6+ {[%clk 0:00:58]}  Kb8 {[%clk 0:00:49]} 31. Bb5 {[%clk 0:00:59]}  Ka7 {[%clk 0:00:48]} 32. c4 {[%clk 0:00:55]}  dxc4 {[%clk 0:00:47]} 33. Bxc4 {[%clk 0:00:55]}  Nd4 {[%clk 0:00:42]} 34. Nb5+ {[%clk 0:00:40]}  Qxb5 {[%clk 0:00:31]} 35. Bxb5 {[%clk 0:00:36]}  Nf3+ {[%clk 0:00:31]} 36. Kg2 {[%clk 0:00:30]}  Nxd2+ {[%clk 0:00:32]} 37. Kh2 {[%clk 0:00:30]}  Nf3+ {[%clk 0:00:31]} 38. Kg2 {[%clk 0:00:31]}  Nd4+ {[%clk 0:00:31]} 39. Bc6 {[%clk 0:00:29]}  Bxc6+ {[%clk 0:00:29]} 40. Kh2 {[%clk 0:00:29]}  Rd8 {[%clk 0:00:29]} 41. h4 {[%clk 0:00:29]}  Nf5 {[%clk 0:00:28]} 42. Ra2 {[%clk 0:00:28]}  Be3 {[%clk 0:00:26]} 43. b5 {[%clk 0:00:27]}  Bxb5 {[%clk 0:00:25]} 44. Rb2 {[%clk 0:00:28]}  Rd2+ {[%clk 0:00:24]} 45. Rxd2 {[%clk 0:00:27]}  Bxd2 {[%clk 0:00:24]} 46. g4 {[%clk 0:00:27]}  hxg4 {[%clk 0:00:20]} 47. h5 {[%clk 0:00:28]}  Bxf4+ {[%clk 0:00:20]} 48. Kg2 {[%clk 0:00:28]}  Bxe5 {[%clk 0:00:20]} 49. h6 {[%clk 0:00:28]}  gxh6 {[%clk 0:00:20]} 50. Kh1 {[%clk 0:00:29]}  Bxa6 {[%clk 0:00:20]} 51. Kg2 {[%clk 0:00:30]}  Kb6 {[%clk 0:00:20]} 52. Kh1 {[%clk 0:00:30]}  Kc5 {[%clk 0:00:21]} 53. Kg2 {[%clk 0:00:31]}  Kd4 {[%clk 0:00:22]} 54. Kh1 {[%clk 0:00:32]}  Ke4 {[%clk 0:00:23]} 55. Kg2 {[%clk 0:00:33]}  Kf4 {[%clk 0:00:24]} 56. Kh1 {[%clk 0:00:33]}  Bd6 {[%clk 0:00:23]} 57. Kg2 {[%clk 0:00:34]}  e5 {[%clk 0:00:24]} 58. Kh1 {[%clk 0:00:35]}  e4 {[%clk 0:00:24]} 59. Kg2 {[%clk 0:00:36]}  e3 {[%clk 0:00:25]} 60. Kg1 {[%clk 0:00:36]}  e2 {[%clk 0:00:25]} 61. Kf2 {[%clk 0:00:37]}  g3+ {[%clk 0:00:24]} 62. Ke1 {[%clk 0:00:38]}  g2 {[%clk 0:00:23]} 63. Kd2 {[%clk 0:00:39]}  g1=Q {[%clk 0:00:22]} 64. Kc2 {[%clk 0:00:38]}  Qd1+ {[%clk 0:00:22]} 65. Kb2 {[%clk 0:00:39]}  Qd4+ {[%clk 0:00:22]} 66. Ka2 {[%clk 0:00:39]}  Bc4+ {[%clk 0:00:20]} 67. Kb1 {[%clk 0:00:38]}  e1=Q+ {[%clk 0:00:19]} 68. Kc2 {[%clk 0:00:39]}  Qed2+ {[%clk 0:00:18]} 69. Kb1 {[%clk 0:00:39]}  Q4b2# {[%clk 0:00:19]} 0-1